{"text_format":"3","workbook":"xlsx","n_sheets":2,"sheets":["Evidencija gubitka kilograma","izračuni"],"not_rendered":{"charts":1,"defined_names":7},"read":"whole","date_system":"1900"}

{"sheet":"Evidencija gubitka kilograma","index":0,"n_rows":129,"n_cols":11,"rows_kept":129,"merged":[[0,5,0,9],[1,5,3,9]]}
[null,"CILJNA TEŽINA","PRIKAZ GRAFIKONA",null,null," ZRINKIN GUBITAK KILOGRAMA"]
[{"$nulls":5},"EVIDENCIJA"]
[null,{"v":172,"d":"172.0"},"TJEDNO",{"$nulls":7}," "]
[]
[]
[{"$nulls":10}," "]
{"$rows_empty":18}
[null,"DATUM","TEŽINA"]
[null,"2012-11-30",{"v":176,"d":"176.0"}]
[null,"2012-12-07",{"v":176,"d":"176.0"}]
[null,"2012-12-14",177.6]
[null,"2012-12-21",176.5]
[null,"2012-12-28",176.1]
[null,"2013-01-04",{"v":174,"d":"174.0"}]
[null,"2013-01-11",{"v":173,"d":"173.0"}]
[null,"2013-01-18",{"v":172,"d":"172.0"}]
[null,"2013-01-25",{"v":172,"d":"172.0"}]
[null,"2013-02-01",{"v":173,"d":"173.0"}]
[null,"2013-02-08",{"v":174,"d":"174.0"}]
[null,"2013-02-15",{"v":175,"d":"175.0"}]
[null,"2013-02-22"]
[null,"2013-03-01"]
[null,"2013-03-08"]
[null,"2013-03-15"]
[null,"2013-03-22"]
[null,"2013-03-29"]
[null,"2013-04-05"]
[null,"2013-04-12"]
[null,"2013-04-19"]
[null,"2013-04-26"]
[null,"2013-05-03"]
[null,"2013-05-10"]
[null,"2013-05-17"]
[null,"2013-05-24"]
[null,"2013-05-31"]
[null,"2013-06-07"]
[null,"2013-06-14"]
[null,"2013-06-21"]
[null,"2013-06-28"]
[null,"2013-07-05"]
[null,"2013-07-12"]
[null,"2013-07-19"]
[null,"2013-07-26"]
[null,"2013-08-02"]
[null,"2013-08-09"]
[null,"2013-08-16"]
[null,"2013-08-23"]
[null,"2013-08-30"]
[null,"2013-09-06"]
[null,"2013-09-13"]
[null,"2013-09-20"]
[null,"2013-09-27"]
[null,"2013-10-04"]
[null,"2013-10-11"]
[null,"2013-10-18"]
[null,"2013-10-25"]
[null,"2013-11-01"]
[null,"2013-11-08"]
[null,"2013-11-15"]
[null,"2013-11-22"]
[null,"2013-11-29"]
[null,"2013-12-06"]
[null,"2013-12-13"]
[null,"2013-12-20"]
[null,"2013-12-27"]
[null,"2014-01-03"]
[null,"2014-01-10"]
[null,"2014-01-17"]
[null,"2014-01-24"]
[null,"2014-01-31"]
[null,"2014-02-07"]
[null,"2014-02-14"]
[null,"2014-02-21"]
[null,"2014-02-28"]
[null,"2014-03-07"]
[null,"2014-03-14"]
[null,"2014-03-21"]
[null,"2014-03-28"]
[null,"2014-04-04"]
[null,"2014-04-11"]
[null,"2014-04-18"]
[null,"2014-04-25"]
[null,"2014-05-02"]
[null,"2014-05-09"]
[null,"2014-05-16"]
[null,"2014-05-23"]
[null,"2014-05-30"]
[null,"2014-06-06"]
[null,"2014-06-13"]
[null,"2014-06-20"]
[null,"2014-06-27"]
[null,"2014-07-04"]
[null,"2014-07-11"]
[null,"2014-07-18"]
[null,"2014-07-25"]
[null,"2014-08-01"]
[null,"2014-08-08"]
[null,"2014-08-15"]
[null,"2014-08-22"]
[null,"2014-08-29"]
[null,"2014-09-05"]
[null,"2014-09-12"]
[null,"2014-09-19"]
[null,"2014-09-26"]
[null,"2014-10-03"]
[null,"2014-10-10"]
[null,"2014-10-17"]
[null,"2014-10-24"]
[null,"2014-10-31"]
[null,"2014-11-07"]
[null,"2014-11-14"]
[null,"2014-11-21"]

{"sheet":"izračuni","index":1,"n_rows":108,"n_cols":17,"rows_kept":108,"hidden":true}
["*** List koji mora ostati skriven ***"]
[]
[{"$f":"COUNTIF(A5:A108,FALSE)","v":13},"Razdoblja","Vrijednosti",{"$nulls":3},{"$f":"COUNTIF(H5:H28,\">\"&0)","v":4},"Razdoblja",null,"Vrijednosti"]
[null,"Tjedan",null,null,true,null,null,"Mjesec","Kraj mjeseca"]
[{"$f":"IF(('Evidencija gubitka kilograma'!C26=0)*('Evidencija gubitka kilograma'!C25=0),TRUE)","v":false},{"$f":"IF(A5,0,IF('Evidencija gubitka kilograma'!B26=0,'Evidencija gubitka kilograma'!B25+5,'Evidencija gubitka kilograma'!B26))","v":"2012-11-30"},{"$f":"'Evidencija gubitka kilograma'!C26","v":176},{"$f":"MIN(Grafikon_školskih_sati)","v":"2012-11-30"},{"$f":"IF($E$4,CiljnaTežina,NA())","v":172},null,null,{"$f":"DATE(YEAR(B5),MONTH(B5),1)","v":"2012-11-01"},{"$f":"EOMONTH(H5,0)","v":"2012-11-30"},{"$f":"IFERROR(AVERAGEIFS(Tablica_težine[TEŽINA],Tablica_težine[DATUM],\">=\"&H5,Tablica_težine[DATUM],\"<=\"&I5),NA())","v":176}]
[{"$f":"IF(('Evidencija gubitka kilograma'!C27=0)*('Evidencija gubitka kilograma'!C26=0),TRUE)","v":false},{"$f":"IF(A6,0,IF('Evidencija gubitka kilograma'!B27=0,'Evidencija gubitka kilograma'!B26+5,'Evidencija gubitka kilograma'!B27))","v":"2012-12-07"},{"$f":"'Evidencija gubitka kilograma'!C27","v":176},{"$f":"MAX(Grafikon_školskih_sati)","v":"2013-02-22"},172,null,null,{"$f":"IF(I5+1>MAX($B:$B),NA(),I5+1)","v":"2012-12-01"},"2012-12-31",{"$f":"IFERROR(AVERAGEIFS(Tablica_težine[TEŽINA],Tablica_težine[DATUM],\">=\"&H6,Tablica_težine[DATUM],\"<=\"&I6),NA())","v":176.55}]
[{"$f":"IF(('Evidencija gubitka kilograma'!C28=0)*('Evidencija gubitka kilograma'!C27=0),TRUE)","v":false},{"$f":"IF(A7,0,IF('Evidencija gubitka kilograma'!B28=0,'Evidencija gubitka kilograma'!B27+5,'Evidencija gubitka kilograma'!B28))","v":"2012-12-14"},{"$f":"'Evidencija gubitka kilograma'!C28","v":177.6},{"$nulls":4},{"$f":"IF(I6+1>MAX($B:$B),NA(),I6+1)","v":"2013-01-01"},"2013-01-31",{"$f":"IFERROR(AVERAGEIFS(Tablica_težine[TEŽINA],Tablica_težine[DATUM],\">=\"&H7,Tablica_težine[DATUM],\"<=\"&I7),NA())","v":172.75}]
[{"$f":"IF(('Evidencija gubitka kilograma'!C29=0)*('Evidencija gubitka kilograma'!C28=0),TRUE)","v":false},{"$f":"IF(A8,0,IF('Evidencija gubitka kilograma'!B29=0,'Evidencija gubitka kilograma'!B28+5,'Evidencija gubitka kilograma'!B29))","v":"2012-12-21"},{"$f":"'Evidencija gubitka kilograma'!C29","v":176.5},{"$nulls":4},"2013-02-01","2013-02-28",{"$f":"IFERROR(AVERAGEIFS(Tablica_težine[TEŽINA],Tablica_težine[DATUM],\">=\"&H8,Tablica_težine[DATUM],\"<=\"&I8),NA())","v":174}]
[{"$f":"IF(('Evidencija gubitka kilograma'!C30=0)*('Evidencija gubitka kilograma'!C29=0),TRUE)","v":false},{"$f":"IF(A9,0,IF('Evidencija gubitka kilograma'!B30=0,'Evidencija gubitka kilograma'!B29+5,'Evidencija gubitka kilograma'!B30))","v":"2012-12-28"},{"$f":"'Evidencija gubitka kilograma'!C30","v":176.1},{"$nulls":4},{"$error":"#N/A"},{"$error":"#N/A"},{"$f":"IFERROR(AVERAGEIFS(Tablica_težine[TEŽINA],Tablica_težine[DATUM],\">=\"&H9,Tablica_težine[DATUM],\"<=\"&I9),NA())","v":{"$error":"#N/A"}}]
[{"$f":"IF(('Evidencija gubitka kilograma'!C31=0)*('Evidencija gubitka kilograma'!C30=0),TRUE)","v":false},{"$f":"IF(A10,0,IF('Evidencija gubitka kilograma'!B31=0,'Evidencija gubitka kilograma'!B30+5,'Evidencija gubitka kilograma'!B31))","v":"2013-01-04"},{"$f":"'Evidencija gubitka kilograma'!C31","v":174},{"$nulls":4},{"$error":"#N/A"},{"$error":"#N/A"},{"$f":"IFERROR(AVERAGEIFS(Tablica_težine[TEŽINA],Tablica_težine[DATUM],\">=\"&H10,Tablica_težine[DATUM],\"<=\"&I10),NA())","v":{"$error":"#N/A"}}]
[{"$f":"IF(('Evidencija gubitka kilograma'!C32=0)*('Evidencija gubitka kilograma'!C31=0),TRUE)","v":false},{"$f":"IF(A11,0,IF('Evidencija gubitka kilograma'!B32=0,'Evidencija gubitka kilograma'!B31+5,'Evidencija gubitka kilograma'!B32))","v":"2013-01-11"},{"$f":"'Evidencija gubitka kilograma'!C32","v":173},{"$nulls":4},{"$error":"#N/A"},{"$error":"#N/A"},{"$f":"IFERROR(AVERAGEIFS(Tablica_težine[TEŽINA],Tablica_težine[DATUM],\">=\"&H11,Tablica_težine[DATUM],\"<=\"&I11),NA())","v":{"$error":"#N/A"}},{"$nulls":6},{"$f":"MAX($B:$B)","v":"2013-02-22"}]
[{"$f":"IF(('Evidencija gubitka kilograma'!C33=0)*('Evidencija gubitka kilograma'!C32=0),TRUE)","v":false},{"$f":"IF(A12,0,IF('Evidencija gubitka kilograma'!B33=0,'Evidencija gubitka kilograma'!B32+5,'Evidencija gubitka kilograma'!B33))","v":"2013-01-18"},{"$f":"'Evidencija gubitka kilograma'!C33","v":172},{"$nulls":4},{"$error":"#N/A"},{"$error":"#N/A"},{"$f":"IFERROR(AVERAGEIFS(Tablica_težine[TEŽINA],Tablica_težine[DATUM],\">=\"&H12,Tablica_težine[DATUM],\"<=\"&I12),NA())","v":{"$error":"#N/A"}}]
[{"$f":"IF(('Evidencija gubitka kilograma'!C34=0)*('Evidencija gubitka kilograma'!C33=0),TRUE)","v":false},{"$f":"IF(A13,0,IF('Evidencija gubitka kilograma'!B34=0,'Evidencija gubitka kilograma'!B33+5,'Evidencija gubitka kilograma'!B34))","v":"2013-01-25"},{"$f":"'Evidencija gubitka kilograma'!C34","v":172},{"$nulls":4},{"$error":"#N/A"},{"$error":"#N/A"},{"$f":"IFERROR(AVERAGEIFS(Tablica_težine[TEŽINA],Tablica_težine[DATUM],\">=\"&H13,Tablica_težine[DATUM],\"<=\"&I13),NA())","v":{"$error":"#N/A"}}]
[{"$f":"IF(('Evidencija gubitka kilograma'!C35=0)*('Evidencija gubitka kilograma'!C34=0),TRUE)","v":false},{"$f":"IF(A14,0,IF('Evidencija gubitka kilograma'!B35=0,'Evidencija gubitka kilograma'!B34+5,'Evidencija gubitka kilograma'!B35))","v":"2013-02-01"},{"$f":"'Evidencija gubitka kilograma'!C35","v":173},{"$nulls":4},{"$error":"#N/A"},{"$error":"#N/A"},{"$f":"IFERROR(AVERAGEIFS(Tablica_težine[TEŽINA],Tablica_težine[DATUM],\">=\"&H14,Tablica_težine[DATUM],\"<=\"&I14),NA())","v":{"$error":"#N/A"}}]
[{"$f":"IF(('Evidencija gubitka kilograma'!C36=0)*('Evidencija gubitka kilograma'!C35=0),TRUE)","v":false},{"$f":"IF(A15,0,IF('Evidencija gubitka kilograma'!B36=0,'Evidencija gubitka kilograma'!B35+5,'Evidencija gubitka kilograma'!B36))","v":"2013-02-08"},{"$f":"'Evidencija gubitka kilograma'!C36","v":174},{"$nulls":4},{"$error":"#N/A"},{"$error":"#N/A"},{"$f":"IFERROR(AVERAGEIFS(Tablica_težine[TEŽINA],Tablica_težine[DATUM],\">=\"&H15,Tablica_težine[DATUM],\"<=\"&I15),NA())","v":{"$error":"#N/A"}}]
[{"$f":"IF(('Evidencija gubitka kilograma'!C37=0)*('Evidencija gubitka kilograma'!C36=0),TRUE)","v":false},{"$f":"IF(A16,0,IF('Evidencija gubitka kilograma'!B37=0,'Evidencija gubitka kilograma'!B36+5,'Evidencija gubitka kilograma'!B37))","v":"2013-02-15"},{"$f":"'Evidencija gubitka kilograma'!C37","v":175},{"$nulls":4},{"$error":"#N/A"},{"$error":"#N/A"},{"$f":"IFERROR(AVERAGEIFS(Tablica_težine[TEŽINA],Tablica_težine[DATUM],\">=\"&H16,Tablica_težine[DATUM],\"<=\"&I16),NA())","v":{"$error":"#N/A"}}]
[{"$f":"IF(('Evidencija gubitka kilograma'!C38=0)*('Evidencija gubitka kilograma'!C37=0),TRUE)","v":false},{"$f":"IF(A17,0,IF('Evidencija gubitka kilograma'!B38=0,'Evidencija gubitka kilograma'!B37+5,'Evidencija gubitka kilograma'!B38))","v":"2013-02-22"},{"$f":"'Evidencija gubitka kilograma'!C38","v":0},{"$nulls":4},{"$error":"#N/A"},{"$error":"#N/A"},{"$f":"IFERROR(AVERAGEIFS(Tablica_težine[TEŽINA],Tablica_težine[DATUM],\">=\"&H17,Tablica_težine[DATUM],\"<=\"&I17),NA())","v":{"$error":"#N/A"}}]
[{"$f":"IF(('Evidencija gubitka kilograma'!C39=0)*('Evidencija gubitka kilograma'!C38=0),TRUE)","v":true},{"$f":"IF(A18,0,IF('Evidencija gubitka kilograma'!B39=0,'Evidencija gubitka kilograma'!B38+5,'Evidencija gubitka kilograma'!B39))","v":"00:00:00"},{"$f":"'Evidencija gubitka kilograma'!C39","v":0},{"$nulls":4},{"$error":"#N/A"},{"$error":"#N/A"},{"$f":"IFERROR(AVERAGEIFS(Tablica_težine[TEŽINA],Tablica_težine[DATUM],\">=\"&H18,Tablica_težine[DATUM],\"<=\"&I18),NA())","v":{"$error":"#N/A"}}]
[{"$f":"IF(('Evidencija gubitka kilograma'!C40=0)*('Evidencija gubitka kilograma'!C39=0),TRUE)","v":true},{"$f":"IF(A19,0,IF('Evidencija gubitka kilograma'!B40=0,'Evidencija gubitka kilograma'!B39+5,'Evidencija gubitka kilograma'!B40))","v":"00:00:00"},{"$f":"'Evidencija gubitka kilograma'!C40","v":0},{"$nulls":4},{"$error":"#N/A"},{"$error":"#N/A"},{"$f":"IFERROR(AVERAGEIFS(Tablica_težine[TEŽINA],Tablica_težine[DATUM],\">=\"&H19,Tablica_težine[DATUM],\"<=\"&I19),NA())","v":{"$error":"#N/A"}}]
[{"$f":"IF(('Evidencija gubitka kilograma'!C41=0)*('Evidencija gubitka kilograma'!C40=0),TRUE)","v":true},{"$f":"IF(A20,0,IF('Evidencija gubitka kilograma'!B41=0,'Evidencija gubitka kilograma'!B40+5,'Evidencija gubitka kilograma'!B41))","v":"00:00:00"},{"$f":"'Evidencija gubitka kilograma'!C41","v":0},{"$nulls":4},{"$error":"#N/A"},{"$error":"#N/A"},{"$f":"IFERROR(AVERAGEIFS(Tablica_težine[TEŽINA],Tablica_težine[DATUM],\">=\"&H20,Tablica_težine[DATUM],\"<=\"&I20),NA())","v":{"$error":"#N/A"}}]
[{"$f":"IF(('Evidencija gubitka kilograma'!C42=0)*('Evidencija gubitka kilograma'!C41=0),TRUE)","v":true},{"$f":"IF(A21,0,IF('Evidencija gubitka kilograma'!B42=0,'Evidencija gubitka kilograma'!B41+5,'Evidencija gubitka kilograma'!B42))","v":"00:00:00"},{"$f":"'Evidencija gubitka kilograma'!C42","v":0},{"$nulls":4},{"$error":"#N/A"},{"$error":"#N/A"},{"$f":"IFERROR(AVERAGEIFS(Tablica_težine[TEŽINA],Tablica_težine[DATUM],\">=\"&H21,Tablica_težine[DATUM],\"<=\"&I21),NA())","v":{"$error":"#N/A"}}]
[{"$f":"IF(('Evidencija gubitka kilograma'!C43=0)*('Evidencija gubitka kilograma'!C42=0),TRUE)","v":true},{"$f":"IF(A22,0,IF('Evidencija gubitka kilograma'!B43=0,'Evidencija gubitka kilograma'!B42+5,'Evidencija gubitka kilograma'!B43))","v":"00:00:00"},{"$f":"'Evidencija gubitka kilograma'!C43","v":0},{"$nulls":4},{"$error":"#N/A"},{"$error":"#N/A"},{"$f":"IFERROR(AVERAGEIFS(Tablica_težine[TEŽINA],Tablica_težine[DATUM],\">=\"&H22,Tablica_težine[DATUM],\"<=\"&I22),NA())","v":{"$error":"#N/A"}}]
[{"$f":"IF(('Evidencija gubitka kilograma'!C44=0)*('Evidencija gubitka kilograma'!C43=0),TRUE)","v":true},{"$f":"IF(A23,0,IF('Evidencija gubitka kilograma'!B44=0,'Evidencija gubitka kilograma'!B43+5,'Evidencija gubitka kilograma'!B44))","v":"00:00:00"},{"$f":"'Evidencija gubitka kilograma'!C44","v":0},{"$nulls":4},{"$error":"#N/A"},{"$error":"#N/A"},{"$f":"IFERROR(AVERAGEIFS(Tablica_težine[TEŽINA],Tablica_težine[DATUM],\">=\"&H23,Tablica_težine[DATUM],\"<=\"&I23),NA())","v":{"$error":"#N/A"}}]
[{"$f":"IF(('Evidencija gubitka kilograma'!C45=0)*('Evidencija gubitka kilograma'!C44=0),TRUE)","v":true},{"$f":"IF(A24,0,IF('Evidencija gubitka kilograma'!B45=0,'Evidencija gubitka kilograma'!B44+5,'Evidencija gubitka kilograma'!B45))","v":"00:00:00"},{"$f":"'Evidencija gubitka kilograma'!C45","v":0},{"$nulls":4},{"$error":"#N/A"},{"$error":"#N/A"},{"$f":"IFERROR(AVERAGEIFS(Tablica_težine[TEŽINA],Tablica_težine[DATUM],\">=\"&H24,Tablica_težine[DATUM],\"<=\"&I24),NA())","v":{"$error":"#N/A"}}]
[{"$f":"IF(('Evidencija gubitka kilograma'!C46=0)*('Evidencija gubitka kilograma'!C45=0),TRUE)","v":true},{"$f":"IF(A25,0,IF('Evidencija gubitka kilograma'!B46=0,'Evidencija gubitka kilograma'!B45+5,'Evidencija gubitka kilograma'!B46))","v":"00:00:00"},{"$f":"'Evidencija gubitka kilograma'!C46","v":0},{"$nulls":4},{"$error":"#N/A"},{"$error":"#N/A"},{"$f":"IFERROR(AVERAGEIFS(Tablica_težine[TEŽINA],Tablica_težine[DATUM],\">=\"&H25,Tablica_težine[DATUM],\"<=\"&I25),NA())","v":{"$error":"#N/A"}}]
[{"$f":"IF(('Evidencija gubitka kilograma'!C47=0)*('Evidencija gubitka kilograma'!C46=0),TRUE)","v":true},{"$f":"IF(A26,0,IF('Evidencija gubitka kilograma'!B47=0,'Evidencija gubitka kilograma'!B46+5,'Evidencija gubitka kilograma'!B47))","v":"00:00:00"},{"$f":"'Evidencija gubitka kilograma'!C47","v":0},{"$nulls":4},{"$error":"#N/A"},{"$error":"#N/A"},{"$f":"IFERROR(AVERAGEIFS(Tablica_težine[TEŽINA],Tablica_težine[DATUM],\">=\"&H26,Tablica_težine[DATUM],\"<=\"&I26),NA())","v":{"$error":"#N/A"}}]
[{"$f":"IF(('Evidencija gubitka kilograma'!C48=0)*('Evidencija gubitka kilograma'!C47=0),TRUE)","v":true},{"$f":"IF(A27,0,IF('Evidencija gubitka kilograma'!B48=0,'Evidencija gubitka kilograma'!B47+5,'Evidencija gubitka kilograma'!B48))","v":"00:00:00"},{"$f":"'Evidencija gubitka kilograma'!C48","v":0},{"$nulls":4},{"$error":"#N/A"},{"$error":"#N/A"},{"$f":"IFERROR(AVERAGEIFS(Tablica_težine[TEŽINA],Tablica_težine[DATUM],\">=\"&H27,Tablica_težine[DATUM],\"<=\"&I27),NA())","v":{"$error":"#N/A"}}]
[{"$f":"IF(('Evidencija gubitka kilograma'!C49=0)*('Evidencija gubitka kilograma'!C48=0),TRUE)","v":true},{"$f":"IF(A28,0,IF('Evidencija gubitka kilograma'!B49=0,'Evidencija gubitka kilograma'!B48+5,'Evidencija gubitka kilograma'!B49))","v":"00:00:00"},{"$f":"'Evidencija gubitka kilograma'!C49","v":0},{"$nulls":4},{"$error":"#N/A"},{"$error":"#N/A"},{"$f":"IFERROR(AVERAGEIFS(Tablica_težine[TEŽINA],Tablica_težine[DATUM],\">=\"&H28,Tablica_težine[DATUM],\"<=\"&I28),NA())","v":{"$error":"#N/A"}}]
[{"$f":"IF(('Evidencija gubitka kilograma'!C50=0)*('Evidencija gubitka kilograma'!C49=0),TRUE)","v":true},{"$f":"IF(A29,0,IF('Evidencija gubitka kilograma'!B50=0,'Evidencija gubitka kilograma'!B49+5,'Evidencija gubitka kilograma'!B50))","v":"00:00:00"},{"$f":"'Evidencija gubitka kilograma'!C50","v":0}]
[{"$f":"IF(('Evidencija gubitka kilograma'!C51=0)*('Evidencija gubitka kilograma'!C50=0),TRUE)","v":true},{"$f":"IF(A30,0,IF('Evidencija gubitka kilograma'!B51=0,'Evidencija gubitka kilograma'!B50+5,'Evidencija gubitka kilograma'!B51))","v":"00:00:00"},{"$f":"'Evidencija gubitka kilograma'!C51","v":0}]
[{"$f":"IF(('Evidencija gubitka kilograma'!C52=0)*('Evidencija gubitka kilograma'!C51=0),TRUE)","v":true},{"$f":"IF(A31,0,IF('Evidencija gubitka kilograma'!B52=0,'Evidencija gubitka kilograma'!B51+5,'Evidencija gubitka kilograma'!B52))","v":"00:00:00"},{"$f":"'Evidencija gubitka kilograma'!C52","v":0}]
[{"$f":"IF(('Evidencija gubitka kilograma'!C53=0)*('Evidencija gubitka kilograma'!C52=0),TRUE)","v":true},{"$f":"IF(A32,0,IF('Evidencija gubitka kilograma'!B53=0,'Evidencija gubitka kilograma'!B52+5,'Evidencija gubitka kilograma'!B53))","v":"00:00:00"},{"$f":"'Evidencija gubitka kilograma'!C53","v":0}]
[{"$f":"IF(('Evidencija gubitka kilograma'!C54=0)*('Evidencija gubitka kilograma'!C53=0),TRUE)","v":true},{"$f":"IF(A33,0,IF('Evidencija gubitka kilograma'!B54=0,'Evidencija gubitka kilograma'!B53+5,'Evidencija gubitka kilograma'!B54))","v":"00:00:00"},{"$f":"'Evidencija gubitka kilograma'!C54","v":0}]
[{"$f":"IF(('Evidencija gubitka kilograma'!C55=0)*('Evidencija gubitka kilograma'!C54=0),TRUE)","v":true},{"$f":"IF(A34,0,IF('Evidencija gubitka kilograma'!B55=0,'Evidencija gubitka kilograma'!B54+5,'Evidencija gubitka kilograma'!B55))","v":"00:00:00"},{"$f":"'Evidencija gubitka kilograma'!C55","v":0}]
[{"$f":"IF(('Evidencija gubitka kilograma'!C56=0)*('Evidencija gubitka kilograma'!C55=0),TRUE)","v":true},{"$f":"IF(A35,0,IF('Evidencija gubitka kilograma'!B56=0,'Evidencija gubitka kilograma'!B55+5,'Evidencija gubitka kilograma'!B56))","v":"00:00:00"},{"$f":"'Evidencija gubitka kilograma'!C56","v":0}]
[{"$f":"IF(('Evidencija gubitka kilograma'!C57=0)*('Evidencija gubitka kilograma'!C56=0),TRUE)","v":true},{"$f":"IF(A36,0,IF('Evidencija gubitka kilograma'!B57=0,'Evidencija gubitka kilograma'!B56+5,'Evidencija gubitka kilograma'!B57))","v":"00:00:00"},{"$f":"'Evidencija gubitka kilograma'!C57","v":0}]
[{"$f":"IF(('Evidencija gubitka kilograma'!C58=0)*('Evidencija gubitka kilograma'!C57=0),TRUE)","v":true},{"$f":"IF(A37,0,IF('Evidencija gubitka kilograma'!B58=0,'Evidencija gubitka kilograma'!B57+5,'Evidencija gubitka kilograma'!B58))","v":"00:00:00"},{"$f":"'Evidencija gubitka kilograma'!C58","v":0}]
[{"$f":"IF(('Evidencija gubitka kilograma'!C59=0)*('Evidencija gubitka kilograma'!C58=0),TRUE)","v":true},{"$f":"IF(A38,0,IF('Evidencija gubitka kilograma'!B59=0,'Evidencija gubitka kilograma'!B58+5,'Evidencija gubitka kilograma'!B59))","v":"00:00:00"},{"$f":"'Evidencija gubitka kilograma'!C59","v":0}]
[{"$f":"IF(('Evidencija gubitka kilograma'!C60=0)*('Evidencija gubitka kilograma'!C59=0),TRUE)","v":true},{"$f":"IF(A39,0,IF('Evidencija gubitka kilograma'!B60=0,'Evidencija gubitka kilograma'!B59+5,'Evidencija gubitka kilograma'!B60))","v":"00:00:00"},{"$f":"'Evidencija gubitka kilograma'!C60","v":0}]
[{"$f":"IF(('Evidencija gubitka kilograma'!C61=0)*('Evidencija gubitka kilograma'!C60=0),TRUE)","v":true},{"$f":"IF(A40,0,IF('Evidencija gubitka kilograma'!B61=0,'Evidencija gubitka kilograma'!B60+5,'Evidencija gubitka kilograma'!B61))","v":"00:00:00"},{"$f":"'Evidencija gubitka kilograma'!C61","v":0}]
[{"$f":"IF(('Evidencija gubitka kilograma'!C62=0)*('Evidencija gubitka kilograma'!C61=0),TRUE)","v":true},{"$f":"IF(A41,0,IF('Evidencija gubitka kilograma'!B62=0,'Evidencija gubitka kilograma'!B61+5,'Evidencija gubitka kilograma'!B62))","v":"00:00:00"},{"$f":"'Evidencija gubitka kilograma'!C62","v":0}]
[{"$f":"IF(('Evidencija gubitka kilograma'!C63=0)*('Evidencija gubitka kilograma'!C62=0),TRUE)","v":true},{"$f":"IF(A42,0,IF('Evidencija gubitka kilograma'!B63=0,'Evidencija gubitka kilograma'!B62+5,'Evidencija gubitka kilograma'!B63))","v":"00:00:00"},{"$f":"'Evidencija gubitka kilograma'!C63","v":0}]
[{"$f":"IF(('Evidencija gubitka kilograma'!C64=0)*('Evidencija gubitka kilograma'!C63=0),TRUE)","v":true},{"$f":"IF(A43,0,IF('Evidencija gubitka kilograma'!B64=0,'Evidencija gubitka kilograma'!B63+5,'Evidencija gubitka kilograma'!B64))","v":"00:00:00"},{"$f":"'Evidencija gubitka kilograma'!C64","v":0}]
[{"$f":"IF(('Evidencija gubitka kilograma'!C65=0)*('Evidencija gubitka kilograma'!C64=0),TRUE)","v":true},{"$f":"IF(A44,0,IF('Evidencija gubitka kilograma'!B65=0,'Evidencija gubitka kilograma'!B64+5,'Evidencija gubitka kilograma'!B65))","v":"00:00:00"},{"$f":"'Evidencija gubitka kilograma'!C65","v":0}]
[{"$f":"IF(('Evidencija gubitka kilograma'!C66=0)*('Evidencija gubitka kilograma'!C65=0),TRUE)","v":true},{"$f":"IF(A45,0,IF('Evidencija gubitka kilograma'!B66=0,'Evidencija gubitka kilograma'!B65+5,'Evidencija gubitka kilograma'!B66))","v":"00:00:00"},{"$f":"'Evidencija gubitka kilograma'!C66","v":0}]
[{"$f":"IF(('Evidencija gubitka kilograma'!C67=0)*('Evidencija gubitka kilograma'!C66=0),TRUE)","v":true},{"$f":"IF(A46,0,IF('Evidencija gubitka kilograma'!B67=0,'Evidencija gubitka kilograma'!B66+5,'Evidencija gubitka kilograma'!B67))","v":"00:00:00"},{"$f":"'Evidencija gubitka kilograma'!C67","v":0}]
[{"$f":"IF(('Evidencija gubitka kilograma'!C68=0)*('Evidencija gubitka kilograma'!C67=0),TRUE)","v":true},{"$f":"IF(A47,0,IF('Evidencija gubitka kilograma'!B68=0,'Evidencija gubitka kilograma'!B67+5,'Evidencija gubitka kilograma'!B68))","v":"00:00:00"},{"$f":"'Evidencija gubitka kilograma'!C68","v":0}]
[{"$f":"IF(('Evidencija gubitka kilograma'!C69=0)*('Evidencija gubitka kilograma'!C68=0),TRUE)","v":true},{"$f":"IF(A48,0,IF('Evidencija gubitka kilograma'!B69=0,'Evidencija gubitka kilograma'!B68+5,'Evidencija gubitka kilograma'!B69))","v":"00:00:00"},{"$f":"'Evidencija gubitka kilograma'!C69","v":0}]
[{"$f":"IF(('Evidencija gubitka kilograma'!C70=0)*('Evidencija gubitka kilograma'!C69=0),TRUE)","v":true},{"$f":"IF(A49,0,IF('Evidencija gubitka kilograma'!B70=0,'Evidencija gubitka kilograma'!B69+5,'Evidencija gubitka kilograma'!B70))","v":"00:00:00"},{"$f":"'Evidencija gubitka kilograma'!C70","v":0}]
[{"$f":"IF(('Evidencija gubitka kilograma'!C71=0)*('Evidencija gubitka kilograma'!C70=0),TRUE)","v":true},{"$f":"IF(A50,0,IF('Evidencija gubitka kilograma'!B71=0,'Evidencija gubitka kilograma'!B70+5,'Evidencija gubitka kilograma'!B71))","v":"00:00:00"},{"$f":"'Evidencija gubitka kilograma'!C71","v":0}]
[{"$f":"IF(('Evidencija gubitka kilograma'!C72=0)*('Evidencija gubitka kilograma'!C71=0),TRUE)","v":true},{"$f":"IF(A51,0,IF('Evidencija gubitka kilograma'!B72=0,'Evidencija gubitka kilograma'!B71+5,'Evidencija gubitka kilograma'!B72))","v":"00:00:00"},{"$f":"'Evidencija gubitka kilograma'!C72","v":0}]
[{"$f":"IF(('Evidencija gubitka kilograma'!C73=0)*('Evidencija gubitka kilograma'!C72=0),TRUE)","v":true},{"$f":"IF(A52,0,IF('Evidencija gubitka kilograma'!B73=0,'Evidencija gubitka kilograma'!B72+5,'Evidencija gubitka kilograma'!B73))","v":"00:00:00"},{"$f":"'Evidencija gubitka kilograma'!C73","v":0}]
[{"$f":"IF(('Evidencija gubitka kilograma'!C74=0)*('Evidencija gubitka kilograma'!C73=0),TRUE)","v":true},{"$f":"IF(A53,0,IF('Evidencija gubitka kilograma'!B74=0,'Evidencija gubitka kilograma'!B73+5,'Evidencija gubitka kilograma'!B74))","v":"00:00:00"},{"$f":"'Evidencija gubitka kilograma'!C74","v":0}]
[{"$f":"IF(('Evidencija gubitka kilograma'!C75=0)*('Evidencija gubitka kilograma'!C74=0),TRUE)","v":true},{"$f":"IF(A54,0,IF('Evidencija gubitka kilograma'!B75=0,'Evidencija gubitka kilograma'!B74+5,'Evidencija gubitka kilograma'!B75))","v":"00:00:00"},{"$f":"'Evidencija gubitka kilograma'!C75","v":0}]
[{"$f":"IF(('Evidencija gubitka kilograma'!C76=0)*('Evidencija gubitka kilograma'!C75=0),TRUE)","v":true},{"$f":"IF(A55,0,IF('Evidencija gubitka kilograma'!B76=0,'Evidencija gubitka kilograma'!B75+5,'Evidencija gubitka kilograma'!B76))","v":"00:00:00"},{"$f":"'Evidencija gubitka kilograma'!C76","v":0}]
[{"$f":"IF(('Evidencija gubitka kilograma'!C77=0)*('Evidencija gubitka kilograma'!C76=0),TRUE)","v":true},{"$f":"IF(A56,0,IF('Evidencija gubitka kilograma'!B77=0,'Evidencija gubitka kilograma'!B76+5,'Evidencija gubitka kilograma'!B77))","v":"00:00:00"},{"$f":"'Evidencija gubitka kilograma'!C77","v":0}]
[{"$f":"IF(('Evidencija gubitka kilograma'!C78=0)*('Evidencija gubitka kilograma'!C77=0),TRUE)","v":true},{"$f":"IF(A57,0,IF('Evidencija gubitka kilograma'!B78=0,'Evidencija gubitka kilograma'!B77+5,'Evidencija gubitka kilograma'!B78))","v":"00:00:00"},{"$f":"'Evidencija gubitka kilograma'!C78","v":0}]
[{"$f":"IF(('Evidencija gubitka kilograma'!C79=0)*('Evidencija gubitka kilograma'!C78=0),TRUE)","v":true},{"$f":"IF(A58,0,IF('Evidencija gubitka kilograma'!B79=0,'Evidencija gubitka kilograma'!B78+5,'Evidencija gubitka kilograma'!B79))","v":"00:00:00"},{"$f":"'Evidencija gubitka kilograma'!C79","v":0}]
[{"$f":"IF(('Evidencija gubitka kilograma'!C80=0)*('Evidencija gubitka kilograma'!C79=0),TRUE)","v":true},{"$f":"IF(A59,0,IF('Evidencija gubitka kilograma'!B80=0,'Evidencija gubitka kilograma'!B79+5,'Evidencija gubitka kilograma'!B80))","v":"00:00:00"},{"$f":"'Evidencija gubitka kilograma'!C80","v":0}]
[{"$f":"IF(('Evidencija gubitka kilograma'!C81=0)*('Evidencija gubitka kilograma'!C80=0),TRUE)","v":true},{"$f":"IF(A60,0,IF('Evidencija gubitka kilograma'!B81=0,'Evidencija gubitka kilograma'!B80+5,'Evidencija gubitka kilograma'!B81))","v":"00:00:00"},{"$f":"'Evidencija gubitka kilograma'!C81","v":0}]
[{"$f":"IF(('Evidencija gubitka kilograma'!C82=0)*('Evidencija gubitka kilograma'!C81=0),TRUE)","v":true},{"$f":"IF(A61,0,IF('Evidencija gubitka kilograma'!B82=0,'Evidencija gubitka kilograma'!B81+5,'Evidencija gubitka kilograma'!B82))","v":"00:00:00"},{"$f":"'Evidencija gubitka kilograma'!C82","v":0}]
[{"$f":"IF(('Evidencija gubitka kilograma'!C83=0)*('Evidencija gubitka kilograma'!C82=0),TRUE)","v":true},{"$f":"IF(A62,0,IF('Evidencija gubitka kilograma'!B83=0,'Evidencija gubitka kilograma'!B82+5,'Evidencija gubitka kilograma'!B83))","v":"00:00:00"},{"$f":"'Evidencija gubitka kilograma'!C83","v":0}]
[{"$f":"IF(('Evidencija gubitka kilograma'!C84=0)*('Evidencija gubitka kilograma'!C83=0),TRUE)","v":true},{"$f":"IF(A63,0,IF('Evidencija gubitka kilograma'!B84=0,'Evidencija gubitka kilograma'!B83+5,'Evidencija gubitka kilograma'!B84))","v":"00:00:00"},{"$f":"'Evidencija gubitka kilograma'!C84","v":0}]
[{"$f":"IF(('Evidencija gubitka kilograma'!C85=0)*('Evidencija gubitka kilograma'!C84=0),TRUE)","v":true},{"$f":"IF(A64,0,IF('Evidencija gubitka kilograma'!B85=0,'Evidencija gubitka kilograma'!B84+5,'Evidencija gubitka kilograma'!B85))","v":"00:00:00"},{"$f":"'Evidencija gubitka kilograma'!C85","v":0}]
[{"$f":"IF(('Evidencija gubitka kilograma'!C86=0)*('Evidencija gubitka kilograma'!C85=0),TRUE)","v":true},{"$f":"IF(A65,0,IF('Evidencija gubitka kilograma'!B86=0,'Evidencija gubitka kilograma'!B85+5,'Evidencija gubitka kilograma'!B86))","v":"00:00:00"},{"$f":"'Evidencija gubitka kilograma'!C86","v":0}]
[{"$f":"IF(('Evidencija gubitka kilograma'!C87=0)*('Evidencija gubitka kilograma'!C86=0),TRUE)","v":true},{"$f":"IF(A66,0,IF('Evidencija gubitka kilograma'!B87=0,'Evidencija gubitka kilograma'!B86+5,'Evidencija gubitka kilograma'!B87))","v":"00:00:00"},{"$f":"'Evidencija gubitka kilograma'!C87","v":0}]
[{"$f":"IF(('Evidencija gubitka kilograma'!C88=0)*('Evidencija gubitka kilograma'!C87=0),TRUE)","v":true},{"$f":"IF(A67,0,IF('Evidencija gubitka kilograma'!B88=0,'Evidencija gubitka kilograma'!B87+5,'Evidencija gubitka kilograma'!B88))","v":"00:00:00"},{"$f":"'Evidencija gubitka kilograma'!C88","v":0}]
[{"$f":"IF(('Evidencija gubitka kilograma'!C89=0)*('Evidencija gubitka kilograma'!C88=0),TRUE)","v":true},{"$f":"IF(A68,0,IF('Evidencija gubitka kilograma'!B89=0,'Evidencija gubitka kilograma'!B88+5,'Evidencija gubitka kilograma'!B89))","v":"00:00:00"},{"$f":"'Evidencija gubitka kilograma'!C89","v":0}]
[{"$f":"IF(('Evidencija gubitka kilograma'!C90=0)*('Evidencija gubitka kilograma'!C89=0),TRUE)","v":true},{"$f":"IF(A69,0,IF('Evidencija gubitka kilograma'!B90=0,'Evidencija gubitka kilograma'!B89+5,'Evidencija gubitka kilograma'!B90))","v":"00:00:00"},{"$f":"'Evidencija gubitka kilograma'!C90","v":0}]
[{"$f":"IF(('Evidencija gubitka kilograma'!C91=0)*('Evidencija gubitka kilograma'!C90=0),TRUE)","v":true},{"$f":"IF(A70,0,IF('Evidencija gubitka kilograma'!B91=0,'Evidencija gubitka kilograma'!B90+5,'Evidencija gubitka kilograma'!B91))","v":"00:00:00"},{"$f":"'Evidencija gubitka kilograma'!C91","v":0}]
[{"$f":"IF(('Evidencija gubitka kilograma'!C92=0)*('Evidencija gubitka kilograma'!C91=0),TRUE)","v":true},{"$f":"IF(A71,0,IF('Evidencija gubitka kilograma'!B92=0,'Evidencija gubitka kilograma'!B91+5,'Evidencija gubitka kilograma'!B92))","v":"00:00:00"},{"$f":"'Evidencija gubitka kilograma'!C92","v":0}]
[{"$f":"IF(('Evidencija gubitka kilograma'!C93=0)*('Evidencija gubitka kilograma'!C92=0),TRUE)","v":true},{"$f":"IF(A72,0,IF('Evidencija gubitka kilograma'!B93=0,'Evidencija gubitka kilograma'!B92+5,'Evidencija gubitka kilograma'!B93))","v":"00:00:00"},{"$f":"'Evidencija gubitka kilograma'!C93","v":0}]
[{"$f":"IF(('Evidencija gubitka kilograma'!C94=0)*('Evidencija gubitka kilograma'!C93=0),TRUE)","v":true},{"$f":"IF(A73,0,IF('Evidencija gubitka kilograma'!B94=0,'Evidencija gubitka kilograma'!B93+5,'Evidencija gubitka kilograma'!B94))","v":"00:00:00"},{"$f":"'Evidencija gubitka kilograma'!C94","v":0}]
[{"$f":"IF(('Evidencija gubitka kilograma'!C95=0)*('Evidencija gubitka kilograma'!C94=0),TRUE)","v":true},{"$f":"IF(A74,0,IF('Evidencija gubitka kilograma'!B95=0,'Evidencija gubitka kilograma'!B94+5,'Evidencija gubitka kilograma'!B95))","v":"00:00:00"},{"$f":"'Evidencija gubitka kilograma'!C95","v":0}]
[{"$f":"IF(('Evidencija gubitka kilograma'!C96=0)*('Evidencija gubitka kilograma'!C95=0),TRUE)","v":true},{"$f":"IF(A75,0,IF('Evidencija gubitka kilograma'!B96=0,'Evidencija gubitka kilograma'!B95+5,'Evidencija gubitka kilograma'!B96))","v":"00:00:00"},{"$f":"'Evidencija gubitka kilograma'!C96","v":0}]
[{"$f":"IF(('Evidencija gubitka kilograma'!C97=0)*('Evidencija gubitka kilograma'!C96=0),TRUE)","v":true},{"$f":"IF(A76,0,IF('Evidencija gubitka kilograma'!B97=0,'Evidencija gubitka kilograma'!B96+5,'Evidencija gubitka kilograma'!B97))","v":"00:00:00"},{"$f":"'Evidencija gubitka kilograma'!C97","v":0}]
[{"$f":"IF(('Evidencija gubitka kilograma'!C98=0)*('Evidencija gubitka kilograma'!C97=0),TRUE)","v":true},{"$f":"IF(A77,0,IF('Evidencija gubitka kilograma'!B98=0,'Evidencija gubitka kilograma'!B97+5,'Evidencija gubitka kilograma'!B98))","v":"00:00:00"},{"$f":"'Evidencija gubitka kilograma'!C98","v":0}]
[{"$f":"IF(('Evidencija gubitka kilograma'!C99=0)*('Evidencija gubitka kilograma'!C98=0),TRUE)","v":true},{"$f":"IF(A78,0,IF('Evidencija gubitka kilograma'!B99=0,'Evidencija gubitka kilograma'!B98+5,'Evidencija gubitka kilograma'!B99))","v":"00:00:00"},{"$f":"'Evidencija gubitka kilograma'!C99","v":0}]
[{"$f":"IF(('Evidencija gubitka kilograma'!C100=0)*('Evidencija gubitka kilograma'!C99=0),TRUE)","v":true},{"$f":"IF(A79,0,IF('Evidencija gubitka kilograma'!B100=0,'Evidencija gubitka kilograma'!B99+5,'Evidencija gubitka kilograma'!B100))","v":"00:00:00"},{"$f":"'Evidencija gubitka kilograma'!C100","v":0}]
[{"$f":"IF(('Evidencija gubitka kilograma'!C101=0)*('Evidencija gubitka kilograma'!C100=0),TRUE)","v":true},{"$f":"IF(A80,0,IF('Evidencija gubitka kilograma'!B101=0,'Evidencija gubitka kilograma'!B100+5,'Evidencija gubitka kilograma'!B101))","v":"00:00:00"},{"$f":"'Evidencija gubitka kilograma'!C101","v":0}]
[{"$f":"IF(('Evidencija gubitka kilograma'!C102=0)*('Evidencija gubitka kilograma'!C101=0),TRUE)","v":true},{"$f":"IF(A81,0,IF('Evidencija gubitka kilograma'!B102=0,'Evidencija gubitka kilograma'!B101+5,'Evidencija gubitka kilograma'!B102))","v":"00:00:00"},{"$f":"'Evidencija gubitka kilograma'!C102","v":0}]
[{"$f":"IF(('Evidencija gubitka kilograma'!C103=0)*('Evidencija gubitka kilograma'!C102=0),TRUE)","v":true},{"$f":"IF(A82,0,IF('Evidencija gubitka kilograma'!B103=0,'Evidencija gubitka kilograma'!B102+5,'Evidencija gubitka kilograma'!B103))","v":"00:00:00"},{"$f":"'Evidencija gubitka kilograma'!C103","v":0}]
[{"$f":"IF(('Evidencija gubitka kilograma'!C104=0)*('Evidencija gubitka kilograma'!C103=0),TRUE)","v":true},{"$f":"IF(A83,0,IF('Evidencija gubitka kilograma'!B104=0,'Evidencija gubitka kilograma'!B103+5,'Evidencija gubitka kilograma'!B104))","v":"00:00:00"},{"$f":"'Evidencija gubitka kilograma'!C104","v":0}]
[{"$f":"IF(('Evidencija gubitka kilograma'!C105=0)*('Evidencija gubitka kilograma'!C104=0),TRUE)","v":true},{"$f":"IF(A84,0,IF('Evidencija gubitka kilograma'!B105=0,'Evidencija gubitka kilograma'!B104+5,'Evidencija gubitka kilograma'!B105))","v":"00:00:00"},{"$f":"'Evidencija gubitka kilograma'!C105","v":0}]
[{"$f":"IF(('Evidencija gubitka kilograma'!C106=0)*('Evidencija gubitka kilograma'!C105=0),TRUE)","v":true},{"$f":"IF(A85,0,IF('Evidencija gubitka kilograma'!B106=0,'Evidencija gubitka kilograma'!B105+5,'Evidencija gubitka kilograma'!B106))","v":"00:00:00"},{"$f":"'Evidencija gubitka kilograma'!C106","v":0}]
[{"$f":"IF(('Evidencija gubitka kilograma'!C107=0)*('Evidencija gubitka kilograma'!C106=0),TRUE)","v":true},{"$f":"IF(A86,0,IF('Evidencija gubitka kilograma'!B107=0,'Evidencija gubitka kilograma'!B106+5,'Evidencija gubitka kilograma'!B107))","v":"00:00:00"},{"$f":"'Evidencija gubitka kilograma'!C107","v":0}]
[{"$f":"IF(('Evidencija gubitka kilograma'!C108=0)*('Evidencija gubitka kilograma'!C107=0),TRUE)","v":true},{"$f":"IF(A87,0,IF('Evidencija gubitka kilograma'!B108=0,'Evidencija gubitka kilograma'!B107+5,'Evidencija gubitka kilograma'!B108))","v":"00:00:00"},{"$f":"'Evidencija gubitka kilograma'!C108","v":0}]
[{"$f":"IF(('Evidencija gubitka kilograma'!C109=0)*('Evidencija gubitka kilograma'!C108=0),TRUE)","v":true},{"$f":"IF(A88,0,IF('Evidencija gubitka kilograma'!B109=0,'Evidencija gubitka kilograma'!B108+5,'Evidencija gubitka kilograma'!B109))","v":"00:00:00"},{"$f":"'Evidencija gubitka kilograma'!C109","v":0}]
[{"$f":"IF(('Evidencija gubitka kilograma'!C110=0)*('Evidencija gubitka kilograma'!C109=0),TRUE)","v":true},{"$f":"IF(A89,0,IF('Evidencija gubitka kilograma'!B110=0,'Evidencija gubitka kilograma'!B109+5,'Evidencija gubitka kilograma'!B110))","v":"00:00:00"},{"$f":"'Evidencija gubitka kilograma'!C110","v":0}]
[{"$f":"IF(('Evidencija gubitka kilograma'!C111=0)*('Evidencija gubitka kilograma'!C110=0),TRUE)","v":true},{"$f":"IF(A90,0,IF('Evidencija gubitka kilograma'!B111=0,'Evidencija gubitka kilograma'!B110+5,'Evidencija gubitka kilograma'!B111))","v":"00:00:00"},{"$f":"'Evidencija gubitka kilograma'!C111","v":0}]
[{"$f":"IF(('Evidencija gubitka kilograma'!C112=0)*('Evidencija gubitka kilograma'!C111=0),TRUE)","v":true},{"$f":"IF(A91,0,IF('Evidencija gubitka kilograma'!B112=0,'Evidencija gubitka kilograma'!B111+5,'Evidencija gubitka kilograma'!B112))","v":"00:00:00"},{"$f":"'Evidencija gubitka kilograma'!C112","v":0}]
[{"$f":"IF(('Evidencija gubitka kilograma'!C113=0)*('Evidencija gubitka kilograma'!C112=0),TRUE)","v":true},{"$f":"IF(A92,0,IF('Evidencija gubitka kilograma'!B113=0,'Evidencija gubitka kilograma'!B112+5,'Evidencija gubitka kilograma'!B113))","v":"00:00:00"},{"$f":"'Evidencija gubitka kilograma'!C113","v":0}]
[{"$f":"IF(('Evidencija gubitka kilograma'!C114=0)*('Evidencija gubitka kilograma'!C113=0),TRUE)","v":true},{"$f":"IF(A93,0,IF('Evidencija gubitka kilograma'!B114=0,'Evidencija gubitka kilograma'!B113+5,'Evidencija gubitka kilograma'!B114))","v":"00:00:00"},{"$f":"'Evidencija gubitka kilograma'!C114","v":0}]
[{"$f":"IF(('Evidencija gubitka kilograma'!C115=0)*('Evidencija gubitka kilograma'!C114=0),TRUE)","v":true},{"$f":"IF(A94,0,IF('Evidencija gubitka kilograma'!B115=0,'Evidencija gubitka kilograma'!B114+5,'Evidencija gubitka kilograma'!B115))","v":"00:00:00"},{"$f":"'Evidencija gubitka kilograma'!C115","v":0}]
[{"$f":"IF(('Evidencija gubitka kilograma'!C116=0)*('Evidencija gubitka kilograma'!C115=0),TRUE)","v":true},{"$f":"IF(A95,0,IF('Evidencija gubitka kilograma'!B116=0,'Evidencija gubitka kilograma'!B115+5,'Evidencija gubitka kilograma'!B116))","v":"00:00:00"},{"$f":"'Evidencija gubitka kilograma'!C116","v":0}]
[{"$f":"IF(('Evidencija gubitka kilograma'!C117=0)*('Evidencija gubitka kilograma'!C116=0),TRUE)","v":true},{"$f":"IF(A96,0,IF('Evidencija gubitka kilograma'!B117=0,'Evidencija gubitka kilograma'!B116+5,'Evidencija gubitka kilograma'!B117))","v":"00:00:00"},{"$f":"'Evidencija gubitka kilograma'!C117","v":0}]
[{"$f":"IF(('Evidencija gubitka kilograma'!C118=0)*('Evidencija gubitka kilograma'!C117=0),TRUE)","v":true},{"$f":"IF(A97,0,IF('Evidencija gubitka kilograma'!B118=0,'Evidencija gubitka kilograma'!B117+5,'Evidencija gubitka kilograma'!B118))","v":"00:00:00"},{"$f":"'Evidencija gubitka kilograma'!C118","v":0}]
[{"$f":"IF(('Evidencija gubitka kilograma'!C119=0)*('Evidencija gubitka kilograma'!C118=0),TRUE)","v":true},{"$f":"IF(A98,0,IF('Evidencija gubitka kilograma'!B119=0,'Evidencija gubitka kilograma'!B118+5,'Evidencija gubitka kilograma'!B119))","v":"00:00:00"},{"$f":"'Evidencija gubitka kilograma'!C119","v":0}]
[{"$f":"IF(('Evidencija gubitka kilograma'!C120=0)*('Evidencija gubitka kilograma'!C119=0),TRUE)","v":true},{"$f":"IF(A99,0,IF('Evidencija gubitka kilograma'!B120=0,'Evidencija gubitka kilograma'!B119+5,'Evidencija gubitka kilograma'!B120))","v":"00:00:00"},{"$f":"'Evidencija gubitka kilograma'!C120","v":0}]
[{"$f":"IF(('Evidencija gubitka kilograma'!C121=0)*('Evidencija gubitka kilograma'!C120=0),TRUE)","v":true},{"$f":"IF(A100,0,IF('Evidencija gubitka kilograma'!B121=0,'Evidencija gubitka kilograma'!B120+5,'Evidencija gubitka kilograma'!B121))","v":"00:00:00"},{"$f":"'Evidencija gubitka kilograma'!C121","v":0}]
[{"$f":"IF(('Evidencija gubitka kilograma'!C122=0)*('Evidencija gubitka kilograma'!C121=0),TRUE)","v":true},{"$f":"IF(A101,0,IF('Evidencija gubitka kilograma'!B122=0,'Evidencija gubitka kilograma'!B121+5,'Evidencija gubitka kilograma'!B122))","v":"00:00:00"},{"$f":"'Evidencija gubitka kilograma'!C122","v":0}]
[{"$f":"IF(('Evidencija gubitka kilograma'!C123=0)*('Evidencija gubitka kilograma'!C122=0),TRUE)","v":true},{"$f":"IF(A102,0,IF('Evidencija gubitka kilograma'!B123=0,'Evidencija gubitka kilograma'!B122+5,'Evidencija gubitka kilograma'!B123))","v":"00:00:00"},{"$f":"'Evidencija gubitka kilograma'!C123","v":0}]
[{"$f":"IF(('Evidencija gubitka kilograma'!C124=0)*('Evidencija gubitka kilograma'!C123=0),TRUE)","v":true},{"$f":"IF(A103,0,IF('Evidencija gubitka kilograma'!B124=0,'Evidencija gubitka kilograma'!B123+5,'Evidencija gubitka kilograma'!B124))","v":"00:00:00"},{"$f":"'Evidencija gubitka kilograma'!C124","v":0}]
[{"$f":"IF(('Evidencija gubitka kilograma'!C125=0)*('Evidencija gubitka kilograma'!C124=0),TRUE)","v":true},{"$f":"IF(A104,0,IF('Evidencija gubitka kilograma'!B125=0,'Evidencija gubitka kilograma'!B124+5,'Evidencija gubitka kilograma'!B125))","v":"00:00:00"},{"$f":"'Evidencija gubitka kilograma'!C125","v":0}]
[{"$f":"IF(('Evidencija gubitka kilograma'!C126=0)*('Evidencija gubitka kilograma'!C125=0),TRUE)","v":true},{"$f":"IF(A105,0,IF('Evidencija gubitka kilograma'!B126=0,'Evidencija gubitka kilograma'!B125+5,'Evidencija gubitka kilograma'!B126))","v":"00:00:00"},{"$f":"'Evidencija gubitka kilograma'!C126","v":0}]
[{"$f":"IF(('Evidencija gubitka kilograma'!C127=0)*('Evidencija gubitka kilograma'!C126=0),TRUE)","v":true},{"$f":"IF(A106,0,IF('Evidencija gubitka kilograma'!B127=0,'Evidencija gubitka kilograma'!B126+5,'Evidencija gubitka kilograma'!B127))","v":"00:00:00"},{"$f":"'Evidencija gubitka kilograma'!C127","v":0}]
[{"$f":"IF(('Evidencija gubitka kilograma'!C128=0)*('Evidencija gubitka kilograma'!C127=0),TRUE)","v":true},{"$f":"IF(A107,0,IF('Evidencija gubitka kilograma'!B128=0,'Evidencija gubitka kilograma'!B127+5,'Evidencija gubitka kilograma'!B128))","v":"00:00:00"},{"$f":"'Evidencija gubitka kilograma'!C128","v":0}]
[{"$f":"IF(('Evidencija gubitka kilograma'!C129=0)*('Evidencija gubitka kilograma'!C128=0),TRUE)","v":true},{"$f":"IF(A108,0,IF('Evidencija gubitka kilograma'!B129=0,'Evidencija gubitka kilograma'!B128+5,'Evidencija gubitka kilograma'!B129))","v":"00:00:00"},{"$f":"'Evidencija gubitka kilograma'!C129","v":0}]